[Event "*** Titled Tuesday Blitz"]
[Site "Chess.com"]
[Date "2020.11.03"]
[Round "1"]
[White "arminmusovic"]
[Black "Akhayan"]
[Result "1/2-1/2"]
[WhiteElo "2577"]
[BlackElo "2279"]
[TimeControl "180+1"]
[EndTime "10:08:32 PST"]
[Termination "Game drawn by agreement"]

1. a3 {[%clk 0:03:00.2]} 1... e5 {[%clk 0:02:59.2]} 2. Nc3 {[%clk 0:02:58.4]}
2... d5 {[%clk 0:02:58.7]} 3. d4 {[%clk 0:02:58.7]} 3... exd4 {[%clk 0:02:58.2]}
4. Qxd4 {[%clk 0:02:59.6]} 4... Nf6 {[%clk 0:02:58.5]} 5. e4 {[%clk 0:03:00]}
5... Nc6 {[%clk 0:02:57.8]} 6. Bb5 {[%clk 0:02:59.6]} 6... dxe4 {[%clk
0:02:56.9]} 7. Bxc6+ {[%clk 0:02:59.4]} 7... bxc6 {[%clk 0:02:56.3]} 8. Qxd8+
{[%clk 0:03:00.3]} 8... Kxd8 {[%clk 0:02:56.3]} 9. Bg5 {[%clk 0:03:01.2]} 9...
Bf5 {[%clk 0:02:48.4]} 10. O-O-O+ {[%clk 0:02:59.7]} 10... Kc8 {[%clk
0:02:39.2]} 11. f3 {[%clk 0:02:55]} 11... Be7 {[%clk 0:02:31.2]} 12. fxe4 {[%clk
0:02:43]} 12... Bg4 {[%clk 0:02:30.1]} 13. Nf3 {[%clk 0:02:41.9]} 13... Re8
{[%clk 0:02:29.2]} 14. Rhf1 {[%clk 0:02:38.8]} 14... h6 {[%clk 0:02:24.1]} 15.
Bh4 {[%clk 0:02:20.7]} 15... g5 {[%clk 0:01:54.1]} 16. Bf2 {[%clk 0:02:08.4]}
16... Bd6 {[%clk 0:01:43.4]} 17. Bd4 {[%clk 0:01:35.9]} 17... Nxe4 {[%clk
0:01:29.9]} 18. Rde1 {[%clk 0:01:32.2]} 18... f5 {[%clk 0:01:25.1]} 19. h3
{[%clk 0:01:31.8]} 19... Bf4+ {[%clk 0:01:15.6]} 20. Kd1 {[%clk 0:01:23.1]}
20... Nxc3+ {[%clk 0:01:12.5]} 21. Bxc3 {[%clk 0:01:21.2]} 21... Rd8+ {[%clk
0:01:10.4]} 22. Ke2 {[%clk 0:01:19.2]} 22... Bh5 {[%clk 0:01:05.3]} 23. Kf2
{[%clk 0:01:15.6]} 23... Kb7 {[%clk 0:01:02.8]} 24. Nd4 {[%clk 0:01:14.2]} 24...
Bg6 {[%clk 0:00:50.3]} 25. Ne6 {[%clk 0:01:12.5]} 25... Rd6 {[%clk 0:00:47.5]}
26. Nxf4 {[%clk 0:01:08.2]} 26... gxf4 {[%clk 0:00:47.3]} 27. Kf3 {[%clk
0:01:04.8]} 27... Rg8 {[%clk 0:00:42.4]} 28. Kxf4 {[%clk 0:01:02.6]} 28... Bf7
{[%clk 0:00:42]} 29. g3 {[%clk 0:00:55.3]} 29... Bd5 {[%clk 0:00:41.2]} 30. Re3
{[%clk 0:00:48.8]} 30... Rdg6 {[%clk 0:00:40.1]} 31. Rg1 {[%clk 0:00:37.7]}
31... h5 {[%clk 0:00:39.6]} 32. Kxf5 {[%clk 0:00:34]} 32... Rg5+ {[%clk
0:00:30.8]} 33. Kf4 {[%clk 0:00:34.3]} 33... R5g6 {[%clk 0:00:29.3]} 34. Re5
{[%clk 0:00:33.3]} 34... h4 {[%clk 0:00:27.6]} 35. g4 {[%clk 0:00:33]} 35...
Rf8+ {[%clk 0:00:25.3]} 36. Rf5 {[%clk 0:00:33.5]} 36... Re8 {[%clk 0:00:25.7]}
37. Be5 {[%clk 0:00:25.3]} 37... Rge6 {[%clk 0:00:22.4]} 38. Re1 {[%clk
0:00:25.2]} 38... Bg2 {[%clk 0:00:20.9]} 39. Re3 {[%clk 0:00:25.4]} 39... c5
{[%clk 0:00:18.6]} 40. Rb3+ {[%clk 0:00:20.3]} 40... Kc6 {[%clk 0:00:18]} 41.
Rf6 {[%clk 0:00:20.9]} 41... Rxf6+ {[%clk 0:00:17.2]} 42. Bxf6 {[%clk
0:00:21.8]} 42... c4 {[%clk 0:00:17.1]} 43. Re3 {[%clk 0:00:21]} 43... Rxe3
{[%clk 0:00:16.8]} 44. Kxe3 {[%clk 0:00:21.4]} 44... Bxh3 {[%clk 0:00:17.3]} 45.
Bxh4 {[%clk 0:00:22]} 45... Bxg4 {[%clk 0:00:17.3]} 46. Kd4 {[%clk 0:00:22.4]}
46... Kb5 {[%clk 0:00:17.5]} 47. Kc3 {[%clk 0:00:21.7]} 47... Bd1 {[%clk
0:00:17.6]} 48. Bf2 {[%clk 0:00:22.6]} 48... Bh5 {[%clk 0:00:17.5]} 49. Bxa7
{[%clk 0:00:22.4]} 49... Bg6 {[%clk 0:00:17.9]} 50. Bf2 {[%clk 0:00:22.8]} 50...
Bf7 {[%clk 0:00:17.9]} 51. Bg3 {[%clk 0:00:23]} 51... c6 {[%clk 0:00:18.3]} 52.
Bd6 {[%clk 0:00:22.9]} 52... Bd5 {[%clk 0:00:18.8]} 53. b3 {[%clk 0:00:22]}
53... cxb3 {[%clk 0:00:18.5]} 54. cxb3 {[%clk 0:00:22.9]} 54... c5 {[%clk
0:00:18.6]} 55. a4+ {[%clk 0:00:22.3]} 55... Kc6 {[%clk 0:00:18.5]} 56. Bf8
{[%clk 0:00:22.5]} 56... Bf7 {[%clk 0:00:18.6]} 57. Bg7 {[%clk 0:00:21.6]} 57...
Be6 {[%clk 0:00:18.9]} 58. Bh6 {[%clk 0:00:22.1]} 58... Bc8 {[%clk 0:00:19.2]}
59. Be3 {[%clk 0:00:22.7]} 59... Ba6 {[%clk 0:00:19.3]} 60. Bf2 {[%clk
0:00:23.2]} 60... Kd5 {[%clk 0:00:19.2]} 61. Bg1 {[%clk 0:00:23.3]} 61... Kc6
{[%clk 0:00:19.2]} 62. Kc2 {[%clk 0:00:23]} 62... Kd5 {[%clk 0:00:19.5]} 63. Kc3
{[%clk 0:00:23.1]} 63... Kc6 {[%clk 0:00:19.7]} 64. Bh2 {[%clk 0:00:22.7]} 64...
Kd5 {[%clk 0:00:20]} 65. Bg3 {[%clk 0:00:23.3]} 65... Kc6 {[%clk 0:00:20.4]} 66.
Bh4 {[%clk 0:00:23.9]} 66... Kd5 {[%clk 0:00:20.8]} 67. Bg5 {[%clk 0:00:24.4]}
67... Kc6 {[%clk 0:00:21.1]} 68. b4 {[%clk 0:00:23.2]} 68... cxb4+ {[%clk
0:00:20.7]} 69. Kxb4 {[%clk 0:00:24.1]} 69... Kb7 {[%clk 0:00:21.1]} 70. a5
{[%clk 0:00:25]} 70... Bd3 {[%clk 0:00:20.8]} 71. Be3 {[%clk 0:00:25.9]} 71...
Ka8 {[%clk 0:00:20.7]} 72. Kc5 {[%clk 0:00:26.8]} 72... Be4 {[%clk 0:00:20.8]}
73. Kb6 {[%clk 0:00:27.7]} 73... Bf3 {[%clk 0:00:20.7]} 74. a6 {[%clk
0:00:27.3]} 74... Be4 {[%clk 0:00:20.9]} 75. a7 {[%clk 0:00:28.2]} 75... Bf3
{[%clk 0:00:20.4]} 76. Kc7 {[%clk 0:00:29.1]} 76... Be4 {[%clk 0:00:19.6]} 77.
Bb6 {[%clk 0:00:30]} 77... Bf3 {[%clk 0:00:19.4]} 78. Kd6 {[%clk 0:00:30.9]}
78... Be4 {[%clk 0:00:19.4]} 1/2-1/2

[Event "*** Titled Tuesday Blitz"]
[Site "Chess.com"]
[Date "2020.11.03"]
[Round "1"]
[White "BikingBrian"]
[Black "gilbert_gm"]
[Result "0-1"]
[WhiteElo "2270"]
[BlackElo "2585"]
[TimeControl "180+1"]
[EndTime "10:08:37 PST"]
[Termination "gilbert_gm won by resignation"]

1. d4 {[%clk 0:03:00.9]} 1... Nf6 {[%clk 0:02:58.9]} 2. Bg5 {[%clk 0:02:58.9]}
2... e6 {[%clk 0:02:59.8]} 3. Nd2 {[%clk 0:02:57.6]} 3... Be7 {[%clk 0:02:59.9]}
4. e4 {[%clk 0:02:57.6]} 4... d5 {[%clk 0:02:59.1]} 5. e5 {[%clk 0:02:58]} 5...
Nfd7 {[%clk 0:02:57.8]} 6. Bxe7 {[%clk 0:02:58.9]} 6... Qxe7 {[%clk 0:02:58.7]}
7. c3 {[%clk 0:02:59.1]} 7... c5 {[%clk 0:02:58.8]} 8. Bd3 {[%clk 0:02:56.7]}
8... Nc6 {[%clk 0:02:59.7]} 9. Ne2 {[%clk 0:02:54.7]} 9... f5 {[%clk 0:02:52.3]}
10. exf6 {[%clk 0:02:54.1]} 10... Nxf6 {[%clk 0:02:45.3]} 11. Nf3 {[%clk
0:02:48.6]} 11... O-O {[%clk 0:02:42]} 12. O-O {[%clk 0:02:48.4]} 12... Bd7
{[%clk 0:02:40.1]} 13. a3 {[%clk 0:02:41.1]} 13... Be8 {[%clk 0:02:27]} 14. Re1
{[%clk 0:02:30.5]} 14... Bh5 {[%clk 0:02:21.1]} 15. Nf4 {[%clk 0:02:28.9]} 15...
Bxf3 {[%clk 0:02:10.5]} 16. Qxf3 {[%clk 0:02:27.2]} 16... cxd4 {[%clk
0:01:53.6]} 17. Qh3 {[%clk 0:02:13.6]} 17... Ne4 {[%clk 0:01:24.3]} 18. Bxe4
{[%clk 0:02:08.1]} 18... dxe4 {[%clk 0:01:06.4]} 19. Rxe4 {[%clk 0:02:07.6]}
19... e5 {[%clk 0:00:59.7]} 20. Qe6+ {[%clk 0:01:18.9]} 20... Qxe6 {[%clk
0:00:47.8]} 21. Nxe6 {[%clk 0:01:19.8]} 21... Rf6 {[%clk 0:00:48.6]} 22. cxd4
{[%clk 0:01:09.3]} 22... Rxe6 {[%clk 0:00:41.6]} 23. d5 {[%clk 0:01:09.5]} 23...
Rd6 {[%clk 0:00:40.7]} 24. dxc6 {[%clk 0:01:09.4]} 24... Rxc6 {[%clk 0:00:41.6]}
25. Rae1 {[%clk 0:00:58.9]} 25... Rac8 {[%clk 0:00:42.5]} 26. Kf1 {[%clk
0:00:53.9]} 26... Rc2 {[%clk 0:00:40.5]} 27. R4e2 {[%clk 0:00:51.7]} 27... Rxe2
{[%clk 0:00:39.4]} 28. Rxe2 {[%clk 0:00:51.9]} 28... Rc1+ {[%clk 0:00:39.5]} 29.
Re1 {[%clk 0:00:52.1]} 29... Rc2 {[%clk 0:00:40.4]} 30. Re2 {[%clk 0:00:52.5]}
30... Rc1+ {[%clk 0:00:39.6]} 31. Re1 {[%clk 0:00:52.9]} 31... Rc2 {[%clk
0:00:40.5]} 32. Re2 {[%clk 0:00:53.4]} 32... Rc5 {[%clk 0:00:40.6]} 33. Ke1
{[%clk 0:00:52.1]} 33... Kf7 {[%clk 0:00:38.7]} 34. Kd2 {[%clk 0:00:52.4]} 34...
Ke6 {[%clk 0:00:35.9]} 35. b4 {[%clk 0:00:52.7]} 35... Rd5+ {[%clk 0:00:30]} 36.
Kc2 {[%clk 0:00:51.7]} 36... Kf5 {[%clk 0:00:29.9]} 37. Kc3 {[%clk 0:00:50.1]}
37... Rd1 {[%clk 0:00:27.7]} 38. g3 {[%clk 0:00:45.6]} 38... e4 {[%clk
0:00:20.3]} 39. h3 {[%clk 0:00:40.1]} 39... h5 {[%clk 0:00:15]} 40. Rd2 {[%clk
0:00:37.8]} 40... Rh1 {[%clk 0:00:11.9]} 41. Rd5+ {[%clk 0:00:35.1]} 41... Kg6
{[%clk 0:00:09.9]} 42. h4 {[%clk 0:00:34.8]} 42... Rf1 {[%clk 0:00:08.6]} 43.
Rg5+ {[%clk 0:00:33.9]} 43... Kf6 {[%clk 0:00:08.9]} 44. Rxh5 {[%clk 0:00:32.7]}
44... Rxf2 {[%clk 0:00:09.4]} 45. Kd4 {[%clk 0:00:31.2]} 45... Rf3 {[%clk
0:00:09.7]} 46. Kxe4 {[%clk 0:00:29.9]} 46... Rxa3 {[%clk 0:00:08.7]} 47. Rf5+
{[%clk 0:00:29.9]} 47... Ke6 {[%clk 0:00:08.4]} 48. Rg5 {[%clk 0:00:28.6]} 48...
Ra4 {[%clk 0:00:06.4]} 49. Rxg7 {[%clk 0:00:26.8]} 49... Rxb4+ {[%clk
0:00:06.9]} 50. Kd3 {[%clk 0:00:25.4]} 50... a5 {[%clk 0:00:07.8]} 51. g4 {[%clk
0:00:24]} 51... a4 {[%clk 0:00:06.2]} 52. Kc3 {[%clk 0:00:21.5]} 52... Rb3+
{[%clk 0:00:06]} 53. Kc2 {[%clk 0:00:21.8]} 53... b5 {[%clk 0:00:04.8]} 54. Rb7
{[%clk 0:00:20.6]} 54... Kd6 {[%clk 0:00:03.8]} 55. h5 {[%clk 0:00:20.3]} 55...
Kc6 {[%clk 0:00:04.2]} 56. Rb8 {[%clk 0:00:20.2]} 56... Rh3 {[%clk 0:00:03.5]}
57. Rc8+ {[%clk 0:00:17.9]} 57... Kb6 {[%clk 0:00:03.8]} 58. Rb8+ {[%clk
0:00:18.1]} 58... Ka5 {[%clk 0:00:04.1]} 59. Kb2 {[%clk 0:00:18.5]} 59... Kb4
{[%clk 0:00:04.1]} 60. Rf8 {[%clk 0:00:17.9]} 60... Rh2+ {[%clk 0:00:04.1]} 61.
Kc1 {[%clk 0:00:18.1]} 61... a3 {[%clk 0:00:04.4]} 62. Rf4+ {[%clk 0:00:17.7]}
62... Kb3 {[%clk 0:00:04.9]} 63. Rf3+ {[%clk 0:00:18.1]} 63... Ka4 {[%clk
0:00:05.5]} 64. Rf4+ {[%clk 0:00:18.2]} 64... b4 {[%clk 0:00:06]} 65. Rf8 {[%clk
0:00:18.3]} 65... a2 {[%clk 0:00:06]} 66. Ra8+ {[%clk 0:00:18]} 66... Kb3 {[%clk
0:00:06.5]} 67. Kd1 {[%clk 0:00:14.9]} 67... Rh1+ {[%clk 0:00:01.8]} 68. Ke2
{[%clk 0:00:15.2]} 68... a1=Q {[%clk 0:00:02]} 69. Rxa1 {[%clk 0:00:14.4]} 69...
Rxa1 {[%clk 0:00:02.9]} 70. g5 {[%clk 0:00:14.5]} 70... Rh1 {[%clk 0:00:03.3]}
71. h6 {[%clk 0:00:14.8]} 71... Rh5 {[%clk 0:00:03.7]} 72. Kf3 {[%clk
0:00:13.8]} 72... Rxg5 {[%clk 0:00:04]} 73. h7 {[%clk 0:00:14]} 73... Rh5 {[%clk
0:00:04.6]} 74. Kf4 {[%clk 0:00:14.5]} 74... Rxh7 {[%clk 0:00:04.7]} 0-1

[Event "*** Titled Tuesday Blitz"]
[Site "Chess.com"]
[Date "2020.11.03"]
[Round "1"]
[White "Agoking701"]
[Black "PaulfromSPb"]
[Result "0-1"]
[WhiteElo "2368"]
[BlackElo "2720"]
[TimeControl "180+1"]
[EndTime "10:08:44 PST"]
[Termination "PaulfromSPb won by checkmate"]

1. e4 {[%clk 0:02:59.9]} 1... c5 {[%clk 0:02:58.3]} 2. Nf3 {[%clk 0:02:57.7]}
2... d6 {[%clk 0:02:57.1]} 3. d4 {[%clk 0:02:58.2]} 3... cxd4 {[%clk 0:02:58]}
4. Nxd4 {[%clk 0:02:58.7]} 4... Nf6 {[%clk 0:02:57.8]} 5. f3 {[%clk 0:02:59.4]}
5... e5 {[%clk 0:02:56]} 6. Nb3 {[%clk 0:02:59.3]} 6... d5 {[%clk 0:02:56.3]} 7.
Bg5 {[%clk 0:02:59.8]} 7... d4 {[%clk 0:02:56.3]} 8. c3 {[%clk 0:02:59.1]} 8...
Nc6 {[%clk 0:02:56.2]} 9. cxd4 {[%clk 0:02:59.1]} 9... exd4 {[%clk 0:02:53.4]}
10. Bb5 {[%clk 0:02:58]} 10... Bb4+ {[%clk 0:02:52.8]} 11. Bd2 {[%clk
0:02:55.1]} 11... Be7 {[%clk 0:02:49.1]} 12. Ba5 {[%clk 0:02:32.1]} 12... Qd6
{[%clk 0:02:30.8]} 13. Qxd4 {[%clk 0:02:25]} 13... Bd7 {[%clk 0:02:30.2]} 14.
Qxd6 {[%clk 0:02:20.8]} 14... Bxd6 {[%clk 0:02:31.1]} 15. Bxc6 {[%clk
0:02:14.9]} 15... Bxc6 {[%clk 0:02:30.4]} 16. N1d2 {[%clk 0:02:08.4]} 16... O-O
{[%clk 0:02:26.5]} 17. O-O-O {[%clk 0:02:03.3]} 17... Rac8 {[%clk 0:02:21.8]}
18. Kb1 {[%clk 0:02:03.4]} 18... Bf4 {[%clk 0:02:16]} 19. g3 {[%clk 0:01:52.7]}
19... Bh6 {[%clk 0:02:14.4]} 20. Rhe1 {[%clk 0:01:46.9]} 20... Rfe8 {[%clk
0:02:13.2]} 21. Bc3 {[%clk 0:01:41.8]} 21... Nd7 {[%clk 0:02:10.9]} 22. Nd4
{[%clk 0:01:37.9]} 22... Ba4 {[%clk 0:02:07.4]} 23. N2b3 {[%clk 0:01:25.5]}
23... Ne5 {[%clk 0:02:02.4]} 24. f4 {[%clk 0:01:19.2]} 24... Ng4 {[%clk
0:02:00.9]} 25. Re2 {[%clk 0:01:10.8]} 25... g6 {[%clk 0:01:52.6]} 26. e5 {[%clk
0:01:05.4]} 26... Bf8 {[%clk 0:01:44.9]} 27. h3 {[%clk 0:01:03.8]} 27... Nh6
{[%clk 0:01:44.5]} 28. g4 {[%clk 0:00:59.8]} 28... b6 {[%clk 0:01:34.4]} 29. Rc1
{[%clk 0:00:58.5]} 29... Bg7 {[%clk 0:01:27.6]} 30. g5 {[%clk 0:00:54]} 30...
Nf5 {[%clk 0:01:26]} 31. Nxf5 {[%clk 0:00:54.1]} 31... gxf5 {[%clk 0:01:26.9]}
32. Nd4 {[%clk 0:00:53.1]} 32... Bd7 {[%clk 0:01:26.2]} 33. Rd1 {[%clk
0:00:49.2]} 33... Bf8 {[%clk 0:01:24.8]} 34. Red2 {[%clk 0:00:49.1]} 34... Bc5
{[%clk 0:01:17.4]} 35. Nb3 {[%clk 0:00:47.8]} 35... Be6 {[%clk 0:01:17.2]} 36.
Nxc5 {[%clk 0:00:47.5]} 36... bxc5 {[%clk 0:01:18.1]} 37. Rd6 {[%clk 0:00:46.9]}
37... Rc7 {[%clk 0:01:14.7]} 38. b3 {[%clk 0:00:46.9]} 38... Kg7 {[%clk
0:01:12]} 39. Kc2 {[%clk 0:00:47.2]} 39... Kg6 {[%clk 0:01:11.5]} 40. h4 {[%clk
0:00:46.1]} 40... Kh5 {[%clk 0:01:11.2]} 41. Ra6 {[%clk 0:00:45.2]} 41... Kxh4
{[%clk 0:01:04.4]} 42. Rh1+ {[%clk 0:00:43.7]} 42... Kg4 {[%clk 0:01:04.3]} 43.
Bd2 {[%clk 0:00:42.3]} 43... c4 {[%clk 0:01:02.9]} 44. b4 {[%clk 0:00:41.5]}
44... c3 {[%clk 0:01:03.1]} 45. Bc1 {[%clk 0:00:40.2]} 45... Bd5 {[%clk
0:01:01]} 46. Rxh7 {[%clk 0:00:38.9]} 46... Be4+ {[%clk 0:01:01]} 47. Kb3 {[%clk
0:00:39.1]} 47... Rec8 {[%clk 0:00:48.1]} 48. g6 {[%clk 0:00:35.1]} 48... fxg6
{[%clk 0:00:46.2]} 49. Rxc7 {[%clk 0:00:34.8]} 49... Rxc7 {[%clk 0:00:47.1]} 50.
Rxg6+ {[%clk 0:00:35.1]} 50... Kf3 {[%clk 0:00:47.8]} 51. Rd6 {[%clk 0:00:32.9]}
51... c2 {[%clk 0:00:45]} 52. Kb2 {[%clk 0:00:32.6]} 52... Rb7 {[%clk
0:00:42.4]} 53. a3 {[%clk 0:00:32.3]} 53... a5 {[%clk 0:00:36.8]} 54. Kc3 {[%clk
0:00:32.4]} 54... axb4+ {[%clk 0:00:35.9]} 55. axb4 {[%clk 0:00:33.3]} 55...
Rc7+ {[%clk 0:00:35.9]} 56. Kb3 {[%clk 0:00:33.8]} 56... Ra7 {[%clk 0:00:34.7]}
57. e6 {[%clk 0:00:33.9]} 57... Ra1 {[%clk 0:00:33.7]} 58. Bb2 {[%clk
0:00:17.2]} 58... Rb1 {[%clk 0:00:33.4]} 59. Ka3 {[%clk 0:00:13.7]} 59... Ra1+
{[%clk 0:00:23]} 60. Kb3 {[%clk 0:00:12.3]} 60... Ra7 {[%clk 0:00:16.3]} 61. Rd7
{[%clk 0:00:09.8]} 61... Ra8 {[%clk 0:00:11.1]} 62. e7 {[%clk 0:00:09.8]} 62...
Re8 {[%clk 0:00:10.5]} 63. Kc3 {[%clk 0:00:07.5]} 63... Kxf4 {[%clk 0:00:08]}
64. Kd2 {[%clk 0:00:07.2]} 64... Kg5 {[%clk 0:00:06.3]} 65. b5 {[%clk
0:00:06.1]} 65... f4 {[%clk 0:00:05.7]} 66. Bd4 {[%clk 0:00:04.5]} 66... Rc8
{[%clk 0:00:04.4]} 67. b6 {[%clk 0:00:05.4]} 67... c1=Q+ {[%clk 0:00:03.7]} 68.
Ke2 {[%clk 0:00:05.1]} 68... Rc2# {[%clk 0:00:03.5]} 0-1

[Event "*** Titled Tuesday Blitz"]
[Site "Chess.com"]
[Date "2020.11.03"]
[Round "1"]
[White "zmeeed67"]
[Black "TorFredrikKaasen"]
[Result "0-1"]
[WhiteElo "2362"]
[BlackElo "2704"]
[TimeControl "180+1"]
[EndTime "10:08:45 PST"]
[Termination "TorFredrikKaasen won by resignation"]

1. e4 {[%clk 0:02:59.8]} 1... c5 {[%clk 0:02:59.6]} 2. g3 {[%clk 0:02:59.3]}
2... Nc6 {[%clk 0:02:59]} 3. Bg2 {[%clk 0:02:59.1]} 3... g6 {[%clk 0:02:57.3]}
4. Ne2 {[%clk 0:02:59.2]} 4... Bg7 {[%clk 0:02:57.9]} 5. O-O {[%clk 0:02:59.3]}
5... e5 {[%clk 0:02:57.5]} 6. Nbc3 {[%clk 0:02:59.4]} 6... Nge7 {[%clk
0:02:57.8]} 7. a3 {[%clk 0:02:59.3]} 7... O-O {[%clk 0:02:57.4]} 8. Rb1 {[%clk
0:02:59.3]} 8... d6 {[%clk 0:02:52.2]} 9. b4 {[%clk 0:02:59.1]} 9... b6 {[%clk
0:02:52.4]} 10. d3 {[%clk 0:02:58.1]} 10... Be6 {[%clk 0:02:43.2]} 11. Bd2
{[%clk 0:02:55.8]} 11... Qd7 {[%clk 0:02:40.6]} 12. f4 {[%clk 0:02:54.2]} 12...
cxb4 {[%clk 0:02:22.2]} 13. axb4 {[%clk 0:02:50.8]} 13... Rac8 {[%clk
0:02:22.2]} 14. Ra1 {[%clk 0:02:25.2]} 14... d5 {[%clk 0:02:08.7]} 15. b5 {[%clk
0:02:19.5]} 15... Nd4 {[%clk 0:02:05.8]} 16. Nxd4 {[%clk 0:02:17.1]} 16... exd4
{[%clk 0:02:06.2]} 17. Nxd5 {[%clk 0:02:03.1]} 17... Nxd5 {[%clk 0:02:05]} 18.
exd5 {[%clk 0:02:01.1]} 18... Bxd5 {[%clk 0:02:05]} 19. Bxd5 {[%clk 0:01:34.7]}
19... Qxd5 {[%clk 0:02:05.9]} 20. f5 {[%clk 0:01:34.7]} 20... Rc7 {[%clk
0:01:44.4]} 21. Bf4 {[%clk 0:01:24.5]} 21... Rd7 {[%clk 0:01:42.1]} 22. fxg6
{[%clk 0:00:43.4]} 22... hxg6 {[%clk 0:01:40.3]} 23. Rb1 {[%clk 0:00:44]} 23...
Re8 {[%clk 0:01:35.2]} 24. Re1 {[%clk 0:00:42.6]} 24... Rde7 {[%clk 0:01:35.7]}
25. Rxe7 {[%clk 0:00:42.1]} 25... Rxe7 {[%clk 0:01:36.6]} 26. h4 {[%clk
0:00:36.3]} 26... Be5 {[%clk 0:01:27]} 27. Qd2 {[%clk 0:00:34.4]} 27... Bxf4
{[%clk 0:01:24.5]} 28. Qxf4 {[%clk 0:00:33.7]} 28... Re3 {[%clk 0:01:23.4]} 29.
Rf1 {[%clk 0:00:31.4]} 29... Re2 {[%clk 0:01:05.4]} 30. Rf2 {[%clk 0:00:30.8]}
30... Re1+ {[%clk 0:01:05.7]} 31. Rf1 {[%clk 0:00:29.8]} 31... Rxf1+ {[%clk
0:01:05.7]} 32. Kxf1 {[%clk 0:00:28.1]} 32... Qxb5 {[%clk 0:01:06.1]} 33. Qxd4
{[%clk 0:00:27.5]} 33... Qb1+ {[%clk 0:01:06.1]} 34. Kg2 {[%clk 0:00:26.3]}
34... Qxc2+ {[%clk 0:01:06.7]} 35. Kh3 {[%clk 0:00:26.5]} 35... Qc8+ {[%clk
0:01:06.8]} 36. g4 {[%clk 0:00:25.7]} 36... Qc7 {[%clk 0:01:00.7]} 37. h5 {[%clk
0:00:23.7]} 37... gxh5 {[%clk 0:00:56.8]} 38. gxh5 {[%clk 0:00:23.4]} 38... Qc6
{[%clk 0:00:45.1]} 39. Qd8+ {[%clk 0:00:19.3]} 39... Kh7 {[%clk 0:00:44.7]} 40.
Qg5 {[%clk 0:00:13.3]} 40... Qe6+ {[%clk 0:00:44.8]} 41. Kg2 {[%clk 0:00:12.8]}
41... Qh6 {[%clk 0:00:41]} 42. Qf5+ {[%clk 0:00:11.9]} 42... Kg7 {[%clk
0:00:41.4]} 43. Kf3 {[%clk 0:00:11.8]} 43... Qf6 {[%clk 0:00:39.3]} 44. Ke4
{[%clk 0:00:05.3]} 44... Qxf5+ {[%clk 0:00:24.7]} 45. Kxf5 {[%clk 0:00:05.3]}
45... a5 {[%clk 0:00:25.6]} 46. d4 {[%clk 0:00:05.4]} 46... a4 {[%clk
0:00:23.7]} 47. d5 {[%clk 0:00:05.9]} 47... a3 {[%clk 0:00:19.2]} 48. d6 {[%clk
0:00:06.3]} 48... a2 {[%clk 0:00:19.6]} 49. d7 {[%clk 0:00:06.5]} 49... a1=Q
{[%clk 0:00:20.1]} 50. d8=Q {[%clk 0:00:06.8]} 50... Qf1+ {[%clk 0:00:20.7]} 51.
Ke5 {[%clk 0:00:06.3]} 51... Qe2+ {[%clk 0:00:20.4]} 52. Kf4 {[%clk 0:00:06.1]}
52... Qf2+ {[%clk 0:00:20.5]} 53. Kg5 {[%clk 0:00:05.6]} 53... Qc5+ {[%clk
0:00:19.8]} 54. Kg4 {[%clk 0:00:05.4]} 54... Qc4+ {[%clk 0:00:19.2]} 55. Kg5
{[%clk 0:00:05.3]} 55... Qc1+ {[%clk 0:00:19.4]} 56. Kg4 {[%clk 0:00:05.1]}
56... Qg1+ {[%clk 0:00:19.9]} 57. Kf5 {[%clk 0:00:04.8]} 57... Qf2+ {[%clk
0:00:19.3]} 58. Kg4 {[%clk 0:00:04.6]} 58... Qg2+ {[%clk 0:00:18.7]} 59. Kf5
{[%clk 0:00:04.5]} 59... Qh3+ {[%clk 0:00:18.8]} 60. Kg5 {[%clk 0:00:04.4]}
60... Qg3+ {[%clk 0:00:17.7]} 61. Kf5 {[%clk 0:00:04.3]} 61... Qe3 {[%clk
0:00:15.6]} 62. Qf6+ {[%clk 0:00:03.4]} 62... Kg8 {[%clk 0:00:16.1]} 63. Qd8+
{[%clk 0:00:03.2]} 63... Kh7 {[%clk 0:00:16.7]} 64. Qf6 {[%clk 0:00:02.7]} 64...
Qf3+ {[%clk 0:00:14.3]} 65. Ke5 {[%clk 0:00:02.3]} 65... Qxf6+ {[%clk
0:00:14.9]} 66. Kxf6 {[%clk 0:00:02.7]} 66... b5 {[%clk 0:00:15.8]} 67. Ke5
{[%clk 0:00:02.5]} 67... Kh6 {[%clk 0:00:16.2]} 68. Kd4 {[%clk 0:00:02.2]} 68...
Kxh5 {[%clk 0:00:16.7]} 69. Kc5 {[%clk 0:00:02.8]} 69... Kg4 {[%clk 0:00:16.9]}
70. Kxb5 {[%clk 0:00:03.2]} 70... f5 {[%clk 0:00:17.6]} 71. Kc4 {[%clk
0:00:04.1]} 71... f4 {[%clk 0:00:17.3]} 0-1